[Event "10th Cherry Blossom Classic 2023"]
[Site "Dulles"]
[Date "2023.05.27"]
[Round "4.22"]
[White "Aripov, Iskandar"]
[Black "Prem, Pranav"]
[Result "1-0"]
[ECO "D35"]
[WhiteElo "2211"]
[BlackElo "2061"]
[Annotator "TA"]
[PlyCount "99"]
[EventDate "2023.05.24"]
[EventType "swiss"]
[EventCountry "USA"]
[SourceTitle "playchess.com"]
[Source "ChessBase"]
[SourceQuality "1"]
[TimeControl "5400+30"]

{[%evp 16,99,40,36,45,22,50,16,27,17,20,13,27,9,18,21,43,39,44,42,40,14,33,0,0,14,33,27,28,0,10,7,0,0,0,0,9,0,27,34,17,8,76,31,86,2,13,0,94,76,95,56,65,71,269,47,49,33,527,513,506,121,112,107,99,112,114,38,85,77,76,27,683,645,866,852,1056,1016,1318,1053,1177,968,1016,877,843,587]} 1. d4 {[%emt 0:00:02]} d5 {[%emt 0:04:03]} 2. c4 {[%emt 0:00:06]} e6 {[%emt 0:00:12]} 3. Nc3 {[%emt 0:00:12]} Nf6 {[%emt 0:00:24]} 4. Nf3 {[%emt 0:00:50]} Be7 {[%emt 0:00:16]} 5. cxd5 {[%emt 0:03:38]} exd5 {[%emt 0:00:40]} 6. Bf4 {[%emt 0:00:16]} c6 {[%emt 0:01:29]} 7. Qc2 {[%emt 0:02:19]} O-O {[%emt 0:02:29]} 8. e3 {[%emt 0:00:15] 8.h3 is vanishing.} Nbd7 {[%emt 0:01:33]} 9. Bd3 {[%emt 0:00:26]} b6 {[%emt 0:09:50] D35: Queen's Gambit Declined: Exchange Variation.} 10. O-O Bb7 {[%emt 0:03:26]} 11. Rfd1 {[%emt 0:12:50]} g6 {[%emt 0:04:33] The position is equal.} 12. h3 {[%emt 0:07:12] [#]} Rc8 $146 {[%emt 0:04:51]} ({Predecessor:} 12... Re8 13. Rac1 Rc8 14. a3 Nh5 15. Bh2 Nhf6 16. b4 Bf8 17. Qb3 Qe7 18. Rb1 Ne4 19. Bxe4 dxe4 {½-½ Lopez Azambuja,N (2236)-Carvalho,G (2130) URU-ch sf2 Colonia del Sacramento 2023 (6)}) 13. Qe2 {[%emt 0:04:02]} b5 {[%emt 0:13:29]} 14. Ne5 {[%emt 0:09:27]} Re8 {[%emt 0:02:46]} 15. Qf3 {[%emt 0:02:06]} Nf8 {[%emt 0:09:27]} 16. Bg5 {[%emt 0:11:29]} N8d7 {[%emt 0:06:15]} 17. Nxd7 {[%emt 0:02:54]} Nxd7 {[%emt 0:00:08]} 18. Bf4 {[%emt 0:03:55]} a5 {[%emt 0:03:53]} (18... Nf8 {keeps more tension.} 19. Be5 a6 20. Rac1 Bg5) 19. a4 {[%emt 0:04:01]} (19. Bh6 {looks sharper.} a4 20. Rac1 Bd6 21. g3) 19... b4 {[%emt 0:02:15]} 20. Ne2 {[%emt 0:01:57]} Bf6 {[%emt 0:04:44]} 21. Rac1 {[%emt 0:03:37]} c5 {[%emt 0:05:24]} 22. Bb5 {[%emt 0:00:21] dxc5 would be deadly.} c4 {[%emt 0:08:06] [#]} 23. Bxc4 $1 {[%emt 0:09:01]} dxc4 {[%emt 0:00:05]} 24. Qxb7 {[%emt 0:00:04] And now Qb5 would win.} Nb6 {[%emt 0:00:10]} 25. Ra1 {[%emt 0:01:03]} Re6 {[%emt 0:03:53]} 26. Bg3 {[%emt 0:05:46]} (26. Be5 {seems wilder.} Bg5 27. Qe4 f6 28. Qg4) 26... g5 {[%emt 0:04:19]} 27. Qf3 {[%emt 0:01:08]} Qd5 {[%emt 0:01:09]} 28. Qg4 {[%emt 0:04:29] Threatens to win with Nf4.} Kh8 {[%emt 0:01:53]} (28... Bg7 $11 {remains equal.}) 29. Qh5 {[%emt 0:02:24]} Re7 {[%emt 0:02:29]} (29... Kg8 $14) 30. Qh6 {[%emt 0:03:09]} ({Better is} 30. Bh2 $16) 30... Re6 $11 {[%emt 0:00:05]} 31. Qh5 {[%emt 0:01:28]} (31. Rdb1 $11) 31... Re7 $16 {[%emt 0:00:32]} 32. Kh1 {[%emt 0:00:52]} Qd7 {[%emt 0:01:03]} 33. Qf3 {[%emt 0:01:44]} Bg7 {[%emt 0:00:14]} 34. Be5 {[%emt 0:01:16]} Nxa4 $2 {[%emt 0:00:40]} (34... f5 $16 {was necessary.}) 35. Ng3 $2 {[%emt 0:00:46]} ({Only move:} 35. Bxg7+ $1 $18 Kxg7 36. Ng3) 35... f6 $14 {[%emt 0:00:43]} (35... Nxb2 $2 36. Bxg7+ Kxg7 37. Rxa5 $18) 36. Bxf6 $40 {[%emt 0:00:15][%mdl 128] White attacks.} Rf8 $2 {[%emt 0:00:26][%mdl 8192]} (36... Nxb2 $1 $14 37. Bxe7 Nxd1) 37. Bxg7+ $18 {[%emt 0:00:39]} Kxg7 {[%emt 0:00:02]} 38. Qe2 {[%emt 0:00:19]} (38. Nh5+ $18 {is the precise move to win.} Kg8 39. Nf6+ Kh8 40. Nxd7 Rxf3 41. Rxa4 Rxf2 42. Ne5) 38... c3 $16 {[%emt 0:00:39]} 39. b3 {[%emt 0:00:54]} Nb2 {[%emt 0:00:05]} 40. Rdb1 {[%emt 0:00:36]} Qd5 {[%emt 0:01:10] [#]} 41. Qc2 {[%emt 0:00:47]} ({White should try} 41. Rxb2 $1 $16 cxb2 42. Qxb2) 41... Ref7 {[%emt 0:00:28] [#]} (41... Kh8 $14) 42. f3 $1 {[%emt 0:00:53]} Re8 {[%emt 0:00:13]} 43. Ne4 {[%emt 0:00:50]} (43. e4 $16 Qxd4 44. Rxa5) 43... Rc7 $2 {[%emt 0:00:52][%mdl 8192]} (43... h5 $11) 44. Rxb2 $18 {[%emt 0:00:38] White is clearly winning.} cxb2 {[%emt 0:00:32]} 45. Qxc7+ {[%emt 0:00:04]} Kg6 {[%emt 0:00:12]} 46. Rb1 {[%emt 0:00:23]} (46. Qxa5 $2 {is the wrong capture.} Qxa5 47. Rxa5 b1=Q+ $19) (46. Rxa5 b1=Q+ 47. Kh2 Qbxb3 $18) 46... Qxb3 {[%emt 0:00:21]} 47. Qxa5 {[%emt 0:01:03]} Qxe3 {[%emt 0:00:33]} 48. Qb6+ {[%emt 0:00:56]} Kf7 {[%emt 0:00:53]} 49. Qf6+ {[%emt 0:00:15]} ({Less strong is} 49. Rxb2 Rxe4 50. fxe4 (50. Rxb4 Qc1+ 51. Kh2 Qf4+ 52. Kg1 Qc1+ 53. Kh2 Qf4+ 54. Kg1 Qc1+ 55. Kh2 $11) 50... Qc1+ 51. Kh2 Qxb2 $18) 49... Kg8 {[%emt 0:00:02]} 50. Qxg5+ {[%emt 0:00:47] Artfully played by Aripov.   Weighted Error Value: White=0.38/Black=0.48} 1-0

[Event "10th Cherry Blossom Classic 2023"]
[Site "Dulles"]
[Date "2023.05.27"]
[Round "4.23"]
[White "Tahmassebi, Bijan"]
[Black "Samuelson, Andrew"]
[Result "0-1"]
[ECO "B94"]
[WhiteElo "2201"]
[BlackElo "2019"]
[Annotator "TA"]
[PlyCount "125"]
[EventDate "2023.05.24"]
[EventType "swiss"]
[EventCountry "USA"]
[SourceTitle "playchess.com"]
[Source "ChessBase"]
[SourceQuality "1"]
[TimeControl "5400+30"]

{[%evp 11,125,5,5,22,33,30,30,30,30,30,28,33,30,-24,-30,-18,-23,-63,-28,-28,-28,-35,-23,-75,-34,-100,-90,-91,-76,-103,-16,-86,13,20,24,-13,0,0,0,0,37,-15,37,-28,38,-6,38,40,39,41,64,35,96,83,114,92,132,129,173,205,204,87,230,88,91,0,0,0,0,0,0,0,41,0,20,20,24,0,0,-1849,-1944,-1706,-1854,-1582,-1390,-1338,-1467,-1426,-1356,-1065,-1260,-2371,-1985,-2313,-2300,-2000,-1783,-29974,-29975,-29977,-29978,-29980,-29972,-29972,-29967,-29970,-29971,-29970,-29963,-6129,-5285,-29978,-29979,-29980,-29980,-29980]} 1. e4 {[%emt 0:00:03] Fernandez,Daniel Howard} c5 {[%emt 0:00:04]} 2. Nf3 {[%emt 0:00:03]} d6 {[%emt 0:00:04]} 3. d4 {[%emt 0:00:03]} cxd4 {[%emt 0:00:04]} 4. Nxd4 {[%emt 0:00:04]} Nf6 {[%emt 0:00:07]} 5. Nc3 {[%emt 0:00:03]} a6 {[%emt 0:00:07]} 6. Bg5 {[%emt 0:00:04]} Nbd7 {[%emt 0:00:08]} 7. Qe2 {[%emt 0:00:07] B94: Sicilian Najdorf: 6 Bg5 Nbd7.} e6 {[%emt 0:00:05]} 8. f4 {[%emt 0:00:11] 8.f4 is better than 8.0-0-0.} h6 {[%emt 0:00:04]} 9. Bh4 {[%emt 0:00:31] White has an edge.} e5 {[%emt 0:00:06]} 10. fxe5 {[%emt 0:01:04]} dxe5 {[%emt 0:00:05] And now ...g5 would win.} 11. Nf5 {[%emt 0:13:35]} Nb6 {[%emt 0:00:47] [#]} 12. Bxf6 $146 {[%emt 0:06:21]} ({White should play} 12. Rd1 Qc7 13. Bxf6 gxf6 14. Ne3) ({Predecessor:} 12. Qf3 Bxf5 13. Qxf5 Be7 14. Bd3 Nfd7 15. Bxe7 Qxe7 16. O-O-O O-O 17. Kb1 Nc5 18. Be2 Rad8 19. Qf2 Qc7 20. Qe3 Qc6 21. Rhe1 Rfe8 22. a3 Kf8 {½-½ Anand,V (2773)-Nepomniachtchi,I (2763) Tata Steel-A 81st 2019 (6)}) 12... Qxf6 $11 {[%emt 0:00:38]} 13. O-O-O {[%emt 0:00:26]} Bb4 {[%emt 0:05:22]} 14. Qd3 {[%emt 0:15:46][%cal Of5g7]} O-O {[%emt 0:00:45]} 15. Ne3 {[%emt 0:00:44]} Be6 {[%emt 0:03:38]} 16. Ncd5 {[%emt 0:01:57]} Bxd5 {[%emt 0:00:47]} 17. exd5 {[%emt 0:02:28] White is weak on the dark squares} (17. Nxd5 $11 Nxd5 18. exd5) 17... Rfd8 {[%emt 0:01:46]} 18. c4 {[%emt 0:27:23]} ({White should try} 18. Qe4 $1 $15 Qf4 19. Qxf4 exf4 20. Nc4 Nxd5 21. Be2) 18... Rac8 {[%emt 0:00:22][%cal Oe5e4] Black is more active.} (18... Bc5 {looks sharper.} 19. Nc2 e4 20. Qb3 Nc8) 19. Kb1 {[%emt 0:01:00]} Bc5 $1 {[%emt 0:00:42]} 20. Nc2 {[%emt 0:05:56]} Re8 {[%emt 0:03:38]} (20... e4 $1 $17 {[%cal Re4d3]} 21. Qb3 g6) 21. Qe4 {[%emt 0:00:46]} (21. Qc3 $11 {remains equal.}) 21... Qf4 {[%emt 0:02:31]} (21... Na4 $1 $17 {aiming for ...Qb6.} 22. Qf3 (22. Bd3 g6 $17) 22... Be7) 22. Qxf4 {[%emt 0:01:58]} exf4 {[%emt 0:00:01]} 23. Bd3 {[%emt 0:02:43]} (23. b4 $5 {[%cal Rb4c5]} Be7 24. d6 $11) 23... a5 {[%emt 0:00:47]} 24. Rhe1 {[%emt 0:01:49]} g6 {[%emt 0:02:30]} 25. b3 {[%emt 0:03:39]} Nd7 {[%emt 0:00:57]} 26. a3 {[%emt 0:02:28]} ({Better is} 26. Rxe8+ $14 Rxe8 27. Kb2) 26... b6 {[%emt 0:00:32]} (26... Rxe1 $1 $11 27. Rxe1 Bd6) 27. b4 {[%emt 0:01:29]} (27. Rxe8+ $14 Rxe8 28. b4) 27... axb4 {[%emt 0:00:05]} (27... Rxe1 $1 $11 28. Rxe1 Bd6) 28. axb4 {[%emt 0:00:05]} Bd6 {[%emt 0:00:35]} 29. Rxe8+ {[%emt 0:04:48]} Rxe8 {[%emt 0:00:04]} 30. Kb2 {[%emt 0:00:15]} Ne5 {[%emt 0:01:24]} 31. Kc3 {[%emt 0:00:35]} Rc8 {[%emt 0:01:08]} (31... Kf8 $14) 32. Nd4 $16 {[%emt 0:01:10]} Ng4 {[%emt 0:00:26]} 33. Nb5 {[%emt 0:02:06]} Be5+ {[%emt 0:00:41] [#]} 34. Kb3 $1 {[%emt 0:00:16]} Ne3 {[%emt 0:00:42] [#]} 35. Rd2 {[%emt 0:00:29]} f5 {[%emt 0:01:54]} 36. Ra2 {[%emt 0:03:12]} (36. d6 $18) 36... Kg7 {[%emt 0:00:30]} (36... Kf7 $16 {might work better.}) 37. Ra7+ {[%emt 0:00:38]} (37. d6 $18) 37... Kf6 {[%emt 0:00:08]} 38. d6 {[%emt 0:01:31]} (38. Rb7 $16 Rb8 39. Rxb8 Bxb8 40. d6) 38... Nxg2 $11 {[%emt 0:02:10]} 39. d7 {[%emt 0:01:34]} Rd8 {[%emt 0:00:14]} 40. c5 {[%emt 0:00:26]} bxc5 {[%emt 0:00:03]} 41. bxc5 {[%emt 0:00:03]} f3 {[%emt 0:00:49]} 42. c6 {[%emt 0:00:33][%cal Ob5d4]} Nf4 {[%emt 0:01:20]} 43. Bc4 {[%emt 0:00:47]} Ne6 {[%emt 0:02:58]} 44. Bxe6 {[%emt 0:00:43]} Kxe6 {[%emt 0:00:04]} 45. Nd4+ $2 {[%emt 0:00:33][%mdl 8192]} Bxd4 $19 {[%emt 0:00:52]} 46. c7 {[%emt 0:00:12]} Kxd7 {[%emt 0:00:34]} (46... Rxd7 $2 47. Ra6+ (47. c8=R Rxa7 48. Rc1 f2 49. Rf1 Ra1) 47... Ke7 48. c8=Q $18 (48. c8=B $2 {loses.} f2 $19)) 47. cxd8=Q+ {[%emt 0:00:10]} Kxd8 {[%emt 1:10:42][%mdl 4096] Endgame KR-KB} 48. Ra4 {[%emt 0:00:33]} Be5 {[%emt 0:00:00][%cal Of3f2] Hoping for ...f2!} 49. Ra2 {[%emt 0:00:08]} g5 {[%emt 0:00:00][%cal Bg6g5,Bg5g4][%mdl 32]} 50. Kc4 {[%emt 0:00:04]} Ke7 {[%emt 0:00:00] Strongly threatening ...g4.} 51. Kd3 {[%emt 0:00:28]} g4 {[%emt 0:00:00]} 52. Ke3 {[%emt 0:00:21]} Kf6 {[%emt 0:00:00]} 53. h3 {[%emt 0:01:39]} h5 {[%emt 0:00:00][%cal Bh6h5,Bh5g4][%mdl 32]} ({Not} 53... gxh3 54. Kxf3 Kg6 55. Re2 $15) 54. hxg4 {[%emt 0:00:51]} hxg4 {[%emt 0:00:00]} 55. Ra6+ {[%emt 0:00:37]} Kg5 {[%emt 0:00:00]} 56. Ra5 {[%emt 0:00:11]} Bf4+ {[%emt 0:00:00]} 57. Kf2 {[%emt 0:00:05]} Bd6 {[%emt 0:00:00]} 58. Rd5 {[%emt 0:00:10]} Bc7 {[%emt 0:00:00]} 59. Rb5 {[%emt 0:00:05]} Kf6 {[%emt 0:00:00]} 60. Rb7 {[%emt 0:00:14]} Be5 {[%emt 0:00:00] ( -> ...f4)} 61. Rd7 {[%emt 0:01:11]} f4 {[%emt 0:00:00]} 62. Rd8 {[%emt 0:00:18]} Kf5 {[%emt 0:07:30]} 63. Rd1 {[%emt 0:00:32] Quite a comeback for Black.   Weighted Error Value: White=0.59/Black=0.17 (very precise)} 0-1

[Event "10th Cherry Blossom Classic 2023"]
[Site "Dulles"]
[Date "2023.05.27"]
[Round "4.24"]
[White "Shoykhet, Benjamin"]
[Black "Laddha, Yash Jayesh"]
[Result "0-1"]
[ECO "A20"]
[WhiteElo "1919"]
[BlackElo "2195"]
[Annotator "TA"]
[PlyCount "64"]
[EventDate "2023.05.24"]
[EventType "swiss"]
[EventCountry "USA"]
[SourceTitle "playchess.com"]
[Source "ChessBase"]
[SourceQuality "1"]
[TimeControl "5400+30"]

{[%evp 9,64,8,10,0,0,0,16,18,35,8,23,-36,-23,-33,20,-52,-53,-72,-52,-47,-26,-81,-99,-89,-99,-119,-108,-162,-164,-176,-166,-166,-169,-223,-109,-156,-58,-135,-83,-382,-363,-340,-351,-341,-337,-374,-385,-374,-62,-101,0,-29995,-29996,-29996,-29997,-29997,-29998]} 1. c4 {[%emt 0:00:15]} e5 {[%emt 0:00:04]} 2. g3 {[%emt 0:00:06]} c6 {[%emt 0:00:03]} 3. d4 {[%emt 0:00:06]} e4 {[%emt 0:00:05]} 4. d5 {[%emt 0:00:05]} Bb4+ {[%emt 0:00:04]} 5. Bd2 {[%emt 0:00:07]} Qe7 {[%emt 0:00:04]} 6. a3 {[%emt 0:00:35] A20: English Opening: 1...e5.} Bxd2+ {[%emt 0:00:07]} 7. Qxd2 {[%emt 0:00:10] [#]} f5 $146 {[%emt 0:05:59]} ({Predecessor:} 7... cxd5 8. cxd5 d6 9. Nc3 Nf6 10. Bg2 O-O 11. Nh3 Na6 12. b4 h6 13. O-O Bd7 {1-0 Oparin,G (2685)-Sadhwani,R (2619) Titled Tuesday intern op 31st May Early blitz 2022 (7)}) 8. Nc3 {[%emt 0:05:00] The position is equal.} Nf6 {[%emt 0:05:33]} 9. Bh3 {[%emt 0:02:33]} g6 {[%emt 0:08:23]} 10. b4 {[%emt 0:10:54]} (10. d6 $11 Qe6 11. Bf1) 10... O-O {[%emt 0:07:23]} 11. Bg2 {[%emt 0:02:36]} Ng4 {[%emt 0:07:57]} (11... b6 $15) 12. Nd1 {[%emt 0:03:37] [#]} (12. Nh3 $11) 12... a5 $1 $15 {[%emt 0:05:31] aiming for ...axb4.} 13. Rb1 {[%emt 0:02:51]} (13. d6 Qf7) 13... axb4 {[%emt 0:03:03]} 14. axb4 {[%emt 0:00:11]} d6 {[%emt 0:06:01]} 15. h4 {[%emt 0:02:13]} (15. Nh3 $11 {keeps the balance.}) 15... Nd7 $17 {[%emt 0:08:57]} 16. Nh3 {[%emt 0:02:46]} Nde5 {[%emt 0:01:56]} 17. dxc6 {[%emt 0:09:54]} bxc6 {[%emt 0:01:23]} 18. Qc3 {[%emt 0:14:25]} (18. Qc1 $17) 18... Be6 $36 {[%emt 0:03:13][%mdl 2048] Black is on the roll.} 19. c5 {[%emt 0:01:52]} Bc4 {[%emt 0:02:53] White is weak on the light squares} 20. cxd6 {[%emt 0:05:32]} Qxd6 {[%emt 0:00:10]} 21. Ne3 {[%emt 0:00:25]} (21. Nf4 $142) 21... Bb5 {[%emt 0:11:00]} (21... Qf6 $19 {[%cal Oe5f3] has better winning chances. ( -> ...Nf3+!)} 22. Rc1 (22. Nxc4 $2 Nf3+ $19 {[%mdl 64] Discovered Attack}) 22... Nxe3 23. Qxe3 Rfb8) 22. Nxg4 {[%emt 0:01:03]} (22. Qb3+ $142 Kh8 23. Nxg4 Nxg4 24. O-O) 22... Nxg4 {[%emt 0:03:15]} ({Better is} 22... fxg4 $17 23. Nf4 Nf3+ 24. Bxf3 (24. exf3 $2 exf3 25. Bxf3 gxf3 $19) 24... gxf3 25. Qb3+ (25. Rd1 $2 Qe7 $19) 25... Rf7) 23. h5 {[%emt 0:09:57]} e3 {[%emt 0:03:35]} (23... gxh5 24. Nf4 $11) (23... Ne5 $142 {...Qf6 is the strong threat.} 24. hxg6 hxg6) 24. f4 $2 {[%emt 0:01:25][%mdl 8192]} (24. O-O $17) 24... Qd2+ {[%emt 0:01:50][%mdl 64] Decoy} (24... gxh5 25. Bf3 $17 (25. Ng5 $2 Ra3 $19)) 25. Qxd2 {[%emt 0:00:05]} exd2+ {[%emt 0:00:04]} 26. Kxd2 {[%emt 0:00:13]} Ra2+ {[%emt 0:03:34]} (26... gxh5 27. Ng1 $17) 27. Kc3 {[%emt 0:00:07]} Ne3 {[%emt 0:02:39] Hoping for ...Rc2+.} (27... Rxe2 $2 28. Bf1 Re3+ 29. Kd4 $19) (27... gxh5 28. Bf3 $17) 28. Bf3 {[%emt 0:01:52] [#]} Rd8 $2 {[%emt 0:02:02]} ({Not} 28... Bxe2 29. Bxe2 Nd5+ 30. Kd3 $16) (28... Rc2+ $1 $19 29. Kd4 Ng4 30. Bxg4 fxg4) 29. Rhc1 {[%emt 0:04:13]} Rdd2 {[%emt 0:03:46] Black is much more active.} ({Black should play} 29... Ra3+ $17 30. Rb3 Nd1+ 31. Rxd1 Rxb3+ 32. Kxb3 Rxd1) 30. Ra1 $2 {[%emt 0:01:38][%mdl 8192] [#]} (30. h6 $11) 30... Nd1+ $1 {[%emt 0:01:02][%mdl 576] Deflection. Black mates.} 31. Rxd1 {[%emt 0:00:35]} Rac2+ {[%emt 0:00:05]} 32. Kb3 {[%emt 0:00:10]} Bc4+ {[%emt 0:00:03] Magnificent play by Laddha!   Weighted Error Value: White=0.69/Black=0.38} 0-1

[Event "10th Cherry Blossom Classic 2023"]
[Site "Dulles"]
[Date "2023.05.27"]
[Round "4.25"]
[White "Martin, Sam B"]
[Black "Hu, Merric"]
[Result "1-0"]
[ECO "D70"]
[WhiteElo "2067"]
[BlackElo "2022"]
[Annotator "NA RC"]
[PlyCount "97"]
[EventDate "2023.05.24"]
[EventType "swiss"]
[EventCountry "USA"]
[SourceTitle "playchess.com"]
[Source "ChessBase"]
[SourceQuality "1"]
[TimeControl "5400+30"]

1. d4 {[%emt 0:00:06]} Nf6 {[%emt 0:03:13]} 2. c4 {[%emt 0:00:02]} g6 {[%emt 0:00:19]} 3. f3 {[%emt 0:00:02]} d5 {[%emt 0:01:03]} 4. cxd5 {[%emt 0:00:03]} Nxd5 {[%emt 0:00:03]} 5. e4 {[%emt 0:00:11]} Nb6 {[%emt 0:00:07]} 6. Nc3 {[%emt 0:00:17]} Bg7 {[%emt 0:00:50]} 7. Be3 {[%emt 0:01:57]} O-O {[%emt 0:00:13]} 8. Qd2 {[%emt 0:00:02]} e5 {[%emt 0:00:19]} 9. d5 {[%emt 0:00:01]} c6 {[%emt 0:00:12]} 10. h4 {[%emt 0:00:08]} cxd5 {[%emt 0:00:25]} 11. exd5 {[%emt 0:00:02]} N8d7 {[%emt 0:00:09]} 12. h5 {[%emt 0:00:18]} Nf6 {[%emt 0:00:23]} 13. hxg6 {[%emt 0:00:02]} fxg6 {[%emt 0:00:12]} 14. O-O-O {[%emt 0:00:06]} Bd7 {[%emt 0:00:16]} 15. Kb1 {[%emt 0:00:01]} Rc8 {[%emt 0:00:26]} 16. d6 {[%emt 0:00:02]} e4 {[%emt 0:01:25]} 17. fxe4 {[%emt 0:00:05]} Ng4 {[%emt 0:00:29]} 18. Bg5 {[%emt 0:00:02]} Qe8 {[%emt 0:00:07]} 19. Nf3 {[%emt 0:00:02]} Rf7 {[%emt 0:00:26]} 20. Be7 {[%emt 0:36:53]} Bxc3 {[%emt 0:06:48]} 21. bxc3 {[%emt 0:00:04]} Na4 {[%emt 0:05:00]} 22. Rc1 {[%emt 0:11:30]} h6 {[%emt 0:38:38]} 23. Qd4 {[%emt 0:02:14]} Be6 {[%emt 0:26:49]} 24. c4 {[%emt 0:01:52]} Rxe7 {[%emt 0:02:40]} 25. dxe7 {[%emt 0:00:16]} Qxe7 {[%emt 0:00:07]} 26. c5 {[%emt 0:07:03]} Nxc5 {[%emt 0:00:16]} 27. Bc4 {[%emt 0:01:08]} b6 {[%emt 0:01:27]} 28. Ne5 {[%emt 0:05:13]} Rd8 {[%emt 0:03:45]} 29. Bxe6+ {[%emt 0:06:36]} Nxe6 {[%emt 0:00:05]} 30. Qb2 {[%emt 0:03:25]} Nxe5 {[%emt 0:02:27]} 31. Qxe5 {[%emt 0:00:07]} Qb4+ {[%emt 0:01:16]} 32. Ka1 {[%emt 0:00:29]} Qd4+ {[%emt 0:00:46]} 33. Qxd4 {[%emt 0:00:02]} Rxd4 {[%emt 0:00:06]} 34. Rhd1 {[%emt 0:03:21]} Rxd1 {[%emt 0:02:32]} 35. Rxd1 {[%emt 0:00:02]} Nc5 {[%emt 0:00:14]} 36. e5 {[%emt 0:00:36]} Kf7 {[%emt 0:00:06]} 37. Rd6 {[%emt 0:00:19]} h5 {[%emt 0:00:08]} 38. Kb2 {[%emt 0:00:51]} g5 {[%emt 0:00:53]} 39. Kc2 {[%emt 0:00:15]} h4 {[%emt 0:00:27]} 40. Rh6 {[%emt 0:06:01]} b5 {[%emt 0:05:23]} 41. Kc3 {[%emt 0:01:14]} Ne6 {[%emt 0:00:00]} 42. Kd3 {[%emt 0:07:04]} a5 {[%emt 0:00:00]} 43. Ke4 {[%emt 0:01:09]} b4 {[%emt 0:00:26]} 44. Kf5 {[%emt 0:00:37]} Nd4+ {[%emt 0:00:15]} 45. Kxg5 {[%emt 0:00:05]} a4 {[%emt 0:00:20]} 46. Rxh4 {[%emt 0:00:38]} Nc2 {[%emt 0:00:23]} 47. Kf5 {[%emt 0:00:46]} Ne3+ {[%emt 0:00:44]} 48. Ke4 {[%emt 0:00:04]} Nc4 {[%emt 0:00:45]} 49. Kd4 {[%emt 0:00:45]} 1-0

[Event "10th Cherry Blossom Classic 2023"]
[Site "Dulles"]
[Date "2023.05.28"]
[Round "5.2"]
[White "Nyzhnyk, Illya"]
[Black "Hilby, Craig"]
[Result "1-0"]
[ECO "A33"]
[WhiteElo "2644"]
[BlackElo "2401"]
[Annotator "TA"]
[PlyCount "77"]
[EventDate "2023.05.24"]
[EventType "swiss"]
[EventCountry "USA"]
[SourceTitle "playchess.com"]
[Source "ChessBase"]
[SourceQuality "1"]
[TimeControl "5400+30"]

{[%evp 16,77,0,0,50,44,53,54,45,47,125,125,131,119,128,116,159,156,156,156,207,163,175,161,216,208,227,220,248,271,250,251,251,260,252,207,233,211,241,220,263,268,279,256,387,395,393,285,381,368,378,333,506,495,588,573,890,878,1953,1664,1078,1068,999,986]} 1. d4 {[%emt 1:31:00]} e6 {[%emt 0:02:31]} 2. Nf3 {[%emt 0:00:00]} c5 {[%emt 0:00:39]} 3. c4 {[%emt 0:00:00]} cxd4 {[%emt 0:01:01]} 4. Nxd4 {[%emt 0:00:00]} Nf6 {[%emt 0:00:15]} 5. Nc3 {[%emt 0:00:00]} Nc6 {[%emt 0:00:32]} 6. g3 {[%emt 0:00:00]} Qb6 {[%emt 0:03:31]} 7. Nb3 {[%emt 0:00:00]} Ne5 {[%emt 0:01:44]} 8. e4 {[%emt 0:00:00]} Bb4 {[%emt 0:02:45]} 9. Qe2 {[%emt 0:00:00]} Bxc3+ {[%emt 0:02:20] A33: Symmetrical English: 2 Nf3 Nf6 3 d4 cxd4 4 Nxd4 e6 5 Nc3 Nc6.} (9... d6 $1 $11) 10. bxc3 $14 {[%emt 0:00:00]} d6 {[%emt 0:00:16]} 11. f4 {[%emt 0:00:00][%cal Bf2f4,Bf4e5][%mdl 32]} Ng6 {[%emt 0:18:09] White is slightly better.} 12. Ba3 {[%emt 0:00:00] Hoping for Rd1.} O-O {[%emt 0:05:36] [#]} (12... Bd7 $1 $14) 13. e5 $146 {[%emt 0:00:00]} ({Predecessor:} 13. Rd1 Rd8 14. Bg2 e5 15. f5 Ne7 16. g4 Ne8 17. Bf3 Qa6 18. Bc1 Bd7 19. c5 Bb5 {0-1 Kohler,T (2164)-Von Herman,U (2340) Berlin Eckbauer op 19th 2016 (4)}) 13... dxe5 {[%emt 0:01:50]} 14. fxe5 {[%emt 0:00:00]} (14. Bxf8 Kxf8 15. fxe5 Nd7 $14) 14... Nd7 {[%emt 0:00:40]} 15. Bd6 $1 {[%emt 0:00:00]} (15. Bxf8 Kxf8 16. Bg2 Ndxe5) 15... Qd8 {[%emt 0:13:16] Black is weak on the dark squares} 16. Bg2 {[%emt 0:00:00] White has more active pieces. The black rooks are badly placed.} Qg5 {[%emt 0:07:00]} 17. O-O {[%emt 0:00:00]} Ngxe5 {[%emt 0:06:08]} (17... Ndxe5 $16 {was necessary.} 18. Rfe1 Nd7 19. Bxf8 Kxf8) 18. Bxf8 {[%emt 0:00:00]} Kxf8 {[%emt 0:00:48]} 19. Rad1 {[%emt 0:00:00]} a5 {[%emt 0:07:16]} (19... Qe7 $142 20. c5 Kg8) 20. Nd4 $18 {[%emt 0:00:00]} Qe7 {[%emt 0:01:26] [#]} 21. Rb1 $1 {[%emt 0:00:00]} f6 {[%emt 0:05:00]} 22. Rb5 {[%emt 0:00:00]} ({Don't play} 22. Bxb7 Rb8) 22... Ke8 {[%emt 0:04:37]} 23. Bxb7 {[%emt 0:00:00]} Bxb7 {[%emt 0:00:08]} 24. Rxb7 {[%emt 0:00:00][%cal Bb5b7,Bb7a7,Ba7a6,Ba6e6,Be6e8][%mdl 32] Threatens to win with Rc7.} Rc8 {[%emt 0:01:27] Dodges Rc7} 25. Ra7 {[%emt 0:00:00]} Qc5 {[%emt 0:01:26] [#]} 26. Ra6 {[%emt 0:00:00]} Qxc4 {[%emt 0:02:17]} 27. Rxe6+ {[%emt 0:00:00]} ({Not} 27. Rxa5 Qxc3 28. Nb3 Qb4 $14) 27... Kf8 {[%emt 0:01:01]} 28. Qxc4 {[%emt 0:00:00]} ({Inferior is} 28. Rxe5 Nxe5 29. Qxc4 Rxc4 $15) 28... Rxc4 {[%emt 0:00:28]} 29. Nb5 {[%emt 0:00:00] Nd6 is the strong threat.} Rc5 {[%emt 0:06:00]} (29... Ra4 {is a better defense.} 30. Nd6 g6) 30. Nd6 {[%emt 0:00:00][%csl Gd6][%cal Re6e8]} Kg8 {[%emt 0:00:02]} 31. Re8+ {[%emt 0:00:00]} Nf8 {[%emt 0:00:01] [#]} 32. c4 $1 {[%emt 0:00:00]} Rc6 {[%emt 0:02:11]} (32... Nf7 33. Nf5) 33. Rd1 {[%emt 0:00:00]} g5 {[%emt 0:01:28] [#]} (33... Rb6 $142 34. Nf5 g6) 34. c5 $1 {[%emt 0:00:00] White is clearly winning.} Rxc5 {[%emt 0:01:12]} (34... Rc7 35. Rb1) 35. Ne4 {[%emt 0:00:00][%csl LRc5,LRf6]} Nf3+ {[%emt 0:00:15]} 36. Kg2 {[%emt 0:00:00]} Rf5 {[%emt 0:00:06]} 37. Rdd8 {[%emt 0:00:00]} Ne1+ {[%emt 0:00:20]} 38. Kg1 {[%emt 0:00:00]} Nf3+ {[%emt 0:00:06]} 39. Kh1 {[%emt 0:00:00] Black did not feel at home in the position after the opening.   Weighted Error Value: White=0.09 (flawless) /Black=0.38} 1-0